bitfinex/quotes_SOLUSD_20211001
["timestamp","ask_amount","ask_price","bid_price","bid_amount"]
[1633059666693,3.03,139.43,139.34,29.29170458]
[1633059666890,3.03,139.43,139.35,5.63542961]
[1633059667092,80.3576,139.45,139.35,8.66542961]
[1633059667493,80.3576,139.45,139.36,5.63542961]
[1633059667692,3.03,139.45,139.37,29.27396417]
[1633059674297,3.03,139.45,139.33,3.03]
[1633059675297,3.03,139.45,139.34,25.45068128]
[1633059675498,3.03,139.45,139.35,3.03]
[1633059675704,3.03,139.45,139.35,30.42442961]
[1633059676099,3.03,139.45,139.36,5.63542961]
[1633059676304,3.03,139.45,139.37,22.22400603]
[1633059676900,3.03,139.48,139.38,3.03]
[1633059677107,3.03,139.48,139.38,19.777]
[1633059677299,3.03,139.48,139.38,25.41242961]
[1633059677499,10.1198479,139.52,139.38,25.41242961]
[1633059677500,3.03,139.5,139.38,25.41242961]
[1633059677703,3.03,139.52,139.4,25.62849319]
[1633059677899,3.03,139.52,139.41,3.03]
[1633059678101,3.03,139.52,139.41,8.66542961]
[1633059678300,3.03,139.52,139.41,26.84342961]
[1633059678500,3.03,139.52,139.41,21.208]
[1633059678702,3.03,139.52,139.41,26.84342961]
[1633059678902,3.03,139.52,139.41,21.208]
[1633059679303,3.03,139.52,139.41,26.84342961]
[1633059679502,76.9671,139.54,139.41,26.84342961]
[1633059679707,76.9671,139.54,139.41,21.208]
[1633059680504,93.70251102,139.54,139.4,29.36813286]
[1633059680706,5.63542961,139.53,139.4,25.62849319]
[1633059680904,3.03,139.52,139.4,25.62849319]
[1633059681105,3.03,139.52,139.41,3.03]
[1633059683105,16.73541102,139.53,139.41,3.03]
[1633059683306,9.75143769,139.57,139.42,8.32233938]
[1633059683505,9.75143769,139.57,139.44,28.07268583]
[1633059683708,9.75143769,139.57,139.45,3.03]
[1633059685707,3.03,139.56,139.45,3.03]
[1633059685907,22.652,139.56,139.45,3.03]
[1633059686108,22.652,139.56,139.44,28.07268583]
[1633059688709,3.03,139.56,139.44,28.07268583]
[1633059693112,3.03,139.56,139.45,3.03]
[1633059694512,3.03,139.56,139.44,28.07268583]
[1633059694713,19.83763324,139.56,139.44,28.07268583]
[1633059696416,19.83763324,139.56,139.43,3.03]
[1633059696616,40.42763324,139.56,139.41,3.03]
[1633059697016,49.90756601,139.56,139.41,3.03]
[1633059697415,49.90756601,139.56,139.42,24.70214763]
[1633059697815,49.90756601,139.56,139.41,3.03]
[1633059698015,55.54299562,139.56,139.41,3.03]
[1633059698418,9.48061268,139.55,139.41,3.03]
[1633059698617,3.03,139.54,139.41,3.03]
[1633059698817,3.03,139.54,139.41,28.22210525]
[1633059699819,77.4684,139.54,139.41,28.22210525]
[1633059700223,77.4684,139.54,139.41,3.03]
[1633059702323,77.4684,139.54,139.39,3.05088]
[1633059702724,86.94969268,139.54,139.4,8.30380252]
[1633059703321,92.58512229,139.54,139.39,3.05088]
[1633059703723,92.58512229,139.54,139.4,8.3040239]
[1633059704722,9.48197278,139.53,139.4,8.3040239]
[1633059704924,3.03,139.52,139.4,12.16042596]
[1633059705324,3.03,139.52,139.41,31.14769187]
[1633059705523,3.03,139.52,139.42,12.13549756]
[1633059705729,3.03,139.52,139.42,8.30323413]
[1633059708724,3.03,139.52,139.43,26.0243153]
[1633059710127,3.03,139.52,139.42,3.86485704]
[1633059710330,3.03,139.52,139.42,12.16854967]
[1633059710529,3.03,139.52,139.42,8.30369263]
[1633059712132,3.03,139.52,139.42,12.19920515]
[1633059712935,21.429,139.52,139.42,12.19920515]
[1633059713138,21.429,139.52,139.42,8.30369263]
[1633059713333,21.429,139.52,139.4,12.22636309]
[1633059713533,21.429,139.52,139.4,8.30480181]
[1633059715437,9.48333328,139.51,139.4,8.30480181]
[1633059715636,9.48333328,139.51,139.41,3.03]
[1633059715840,12.51265298,139.52,139.42,12.1945111]
[1633059716036,12.51265298,139.52,139.43,26.4291435]
[1633059716239,3.03,139.52,139.43,26.4291435]
[1633059716637,3.03,139.52,139.44,8.30329043]
[1633059718840,3.03,139.52,139.44,12.18376779]
[1633059719241,3.03,139.54,139.44,12.18376779]
[1633059721242,3.03,139.54,139.47,1.93466952]
[1633059721444,3.03,139.54,139.48,27.46226714]
[1633059722044,3.03,139.54,139.48,29.38996989]
[1633059722741,3.03,139.54,139.48,1.92770275]
[1633059723643,3.03,139.54,139.49,31.74220171]
[1633059723843,3.03,139.54,139.5,1.92706451]
[1633059724643,3.03,139.54,139.49,31.74236988]
[1633059725946,9.48061268,139.55,139.51,1.91175765]
[1633059726146,3.03,139.56,139.52,29.16162274]
[1633059726345,3.03,139.56,139.52,31.06266916]
[1633059726547,12.78073831,139.58,139.52,29.16162274]
[1633059726946,3.03,139.58,139.52,29.16162274]
[1633059730049,3.03,139.58,139.49,1.89961758]
[1633059731252,3.03,139.58,139.5,26.22810587]
[1633059734060,3.03,139.58,139.5,41.57310587]
[1633059734659,3.03,139.58,139.5,26.22810587]
[1633059735858,3.03,139.58,139.48,1.88058197]
[1633059736061,37.22790867,139.58,139.47,1.88697391]
[1633059736260,37.22790867,139.58,139.46,1.89584332]
[1633059736458,63.14684839,139.58,139.47,1.89332366]
[1633059736659,63.14684839,139.58,139.46,1.89740708]
[1633059740462,9.47925296,139.57,139.45,30.257182]
[1633059740662,3.03,139.56,139.45,30.257182]
[1633059740864,19.80390867,139.56,139.45,1.905003]
[1633059741064,16.77390867,139.55,139.45,1.905003]
[1633059741266,3.03,139.54,139.45,1.905003]
[1633059741667,94.53230867,139.54,139.44,1.91700661]
[1633059742066,94.53230867,139.54,139.43,23.88741393]
[1633059742266,94.53230867,139.54,139.44,1.9156718]
[1633059744474,94.53230867,139.54,139.45,23.03528456]
[1633059745887,94.53230867,139.54,139.45,24.94028822]
[1633059746490,94.53230867,139.54,139.45,1.90500366]
[1633059748988,100.16773828,139.54,139.45,1.90500366]
[1633059749389,94.53230867,139.54,139.46,1.86286547]
[1633059751490,19.80390867,139.54,139.46,1.86286547]
[1633059752293,19.80390867,139.54,139.46,24.83661523]
[1633059752491,19.80390867,139.54,139.47,1.8951347]
[1633059752693,3.03,139.54,139.48,1.88896563]
[1633059752892,3.03,139.54,139.47,1.90968754]
[1633059755593,3.03,139.54,139.48,22.75555742]
[1633059755793,3.03,139.54,139.5,1.89249805]
[1633059755992,3.03,139.56,139.51,28.80614424]
[1633059756192,3.03,139.56,139.51,52.81114424]
[1633059756392,3.03,139.58,139.51,52.81114424]
[1633059756795,3.03,139.58,139.52,1.88047833]
[1633059757594,3.03,139.58,139.54,22.44386555]
[1633059757793,3.03,139.58,139.54,43.46086555]
[1633059759796,3.03,139.62,139.6,3.03]
[1633059759998,10.08955195,139.65,139.61,21.7937358]
[1633059760598,3.03,139.68,139.61,21.7937358]
[1633059761598,3.03,139.68,139.6,23.29]
[1633059763198,1.55170727,139.68,139.6,23.29]
[1633059766003,54.03,139.7,139.6,23.29]
[1633059766201,3.03,139.72,139.61,3.03]
[1633059766404,3.03,139.72,139.62,26.01340587]
[1633059771003,18.43893615,139.74,139.63,3.03]
[1633059771203,18.43893615,139.74,139.63,22.478]
[1633059777309,18.43893615,139.74,139.63,3.03]
[1633059777707,18.43893615,139.74,139.62,26.01340587]
[1633059778508,18.43893615,139.74,139.61,3.03]
[1633059778708,35.45593615,139.74,139.61,3.03]
[1633059778908,95.15541409,139.74,139.6,347.11013811]
[1633059779307,95.15541409,139.74,139.6,3.03]
[1633059784815,72.50298448,139.74,139.61,27.17198045]
[1633059785014,18.43893615,139.74,139.61,30.20198045]
[1633059785415,18.43893615,139.74,139.61,32.0493456]
[1633059785615,18.43893615,139.74,139.62,1.84782611]
[1633059786223,18.43893615,139.74,139.61,32.05374235]
[1633059786418,18.43893615,139.74,139.62,1.85871614]
[1633059786617,18.43893615,139.74,139.62,25.88371614]
[1633059787419,18.43893615,139.74,139.63,1.86047391]
[1633059787618,18.43893615,139.74,139.64,26.57259116]
[1633059789224,18.43893615,139.74,139.64,29.60259116]
[1633059789422,18.43893615,139.74,139.64,31.45846856]
[1633059791025,18.43893615,139.74,139.65,1.85367824]
[1633059791925,52.86250614,139.74,139.63,1.8690897]
[1633059792124,79.23179585,139.74,139.62,1.88127798]
[1633059792329,9.47042431,139.7,139.62,1.88127798]
[1633059792525,3.03,139.69,139.6,3.03]
[1633059792728,60.54272012,139.69,139.6,3.03]
[1633059792930,86.68547336,139.68,139.6,3.03]
[1633059793126,3.03,139.67,139.6,3.03]
[1633059793327,103.10044946,139.67,139.6,3.03]
[1633059793528,21.04436576,139.66,139.6,3.03]
[1633059793726,3.03,139.65,139.6,3.03]
[1633059793927,24.93512336,139.65,139.6,3.03]
[1633059794125,21.04436576,139.64,139.6,3.03]
[1633059794326,3.03,139.63,139.6,3.03]
[1633059794526,24.93512336,139.63,139.6,3.03]
[1633059795129,19.29969375,139.63,139.6,3.03]
[1633059795928,24.93512336,139.63,139.6,3.03]
[1633059796932,19.29969375,139.63,139.6,3.03]
[1633059797328,3.03,139.63,139.6,3.03]
[1633059798730,8.66542961,139.65,139.6,3.03]
[1633059799129,5.63542961,139.64,139.6,3.03]
[1633059799531,3.03,139.65,139.6,3.03]
[1633059801330,8.66542961,139.65,139.6,3.03]
[1633059801733,3.03,139.65,139.6,3.03]
[1633059803333,8.66542961,139.65,139.6,3.03]
[1633059803733,3.03,139.65,139.6,3.03]
[1633059805135,8.66542961,139.65,139.6,3.03]
[1633059809037,5.63542961,139.65,139.6,3.05088]
[1633059809239,3.03,139.67,139.6,3.05088]
[1633059813241,3.03,139.7,139.6,3.05088]
[1633059813441,3.03,139.7,139.61,8.29171442]
[1633059813640,3.03,139.7,139.62,21.79576454]
[1633059816350,3.03,139.72,139.62,24.82576454]
[1633059816545,3.03,139.72,139.63,8.2904998]
[1633059816745,3.03,139.72,139.63,30.6114998]
[1633059816947,3.03,139.72,139.63,22.321]
[1633059817745,3.03,139.72,139.62,24.82576454]
[1633059818545,3.03,139.72,139.63,8.29024856]
[1633059818949,106.73989221,139.76,139.63,11.32024856]
[1633059818950,3.03,139.74,139.63,11.32024856]
[1633059819146,3.03,139.74,139.64,8.28974989]
[1633059819345,3.03,139.74,139.65,21.50039704]
[1633059822247,8.66542961,139.74,139.65,21.50039704]
[1633059822447,8.66542961,139.74,139.63,3.03]
[1633059822647,37.46079221,139.74,139.61,6.814952]
[1633059822847,37.46079221,139.74,139.62,8.290122]
[1633059823046,54.25010502,139.74,139.62,8.290122]
[1633059823450,54.25010502,139.74,139.63,23.42684426]
[1633059824247,54.25010502,139.74,139.61,3.03]
[1633059824447,54.25010502,139.74,139.62,8.29062233]
[1633059824849,54.25010502,139.74,139.61,3.03]
[1633059825248,54.25010502,139.74,139.6,6.86274261]
[1633059825249,81.63129074,139.74,139.6,6.86274261]
[1633059825450,81.63129074,139.74,139.6,6.84186261]
[1633059825650,81.63129074,139.74,139.6,3.03]
[1633059827148,81.63129074,139.74,139.63,504.132264]
[1633059827349,406.56881418,139.74,139.64,28.59549429]
[1633059829456,406.06881418,139.74,139.64,28.59549429]
[1633059830253,400.43338457,139.74,139.64,28.59549429]
[1633059830451,5.63542961,139.73,139.64,28.59549429]
[1633059830651,3.03,139.72,139.64,28.59549429]
[1633059831856,3.03,139.72,139.63,504.132264]
[1633059833055,3.03,139.72,139.64,22.18015877]
[1633059835058,3.03,139.72,139.63,504.132264]
[1633059838263,3.03,139.72,139.63,506.159561]
[1633059838462,49.51441527,139.72,139.63,506.159561]
[1633059842864,5.63542961,139.71,139.63,506.159561]
[1633059843065,3.03,139.7,139.63,506.159561]
[1633059843466,5.63542961,139.69,139.63,506.159561]
[1633059847671,5.63542961,139.69,139.63,530.26091192]
[1633059847873,5.63542961,139.69,139.63,506.159561]
[1633059853578,3.03,139.68,139.63,506.159561]
[1633059853979,3.03,139.68,139.64,8.2926845]
[1633059854178,5.63542961,139.67,139.63,506.159561]
[1633059854780,24.88142961,139.67,139.63,506.159561]
[1633059854978,3.03,139.66,139.63,506.159561]
[1633059855179,8.66542961,139.66,139.63,506.159561]
[1633059855379,5.63542961,139.65,139.63,506.159561]
[1633059855582,3.03,139.64,139.63,506.159561]
[1633059855979,40.26050833,139.64,139.63,506.159561]
[1633059857982,8.66542961,139.64,139.63,506.159561]
[1633059858790,25.39142961,139.64,139.63,506.159561]
[1633059859986,8.66542961,139.64,139.63,506.159561]
[1633059881920,8.66542961,139.64,139.63,532.63342363]
[1633059882325,8.66542961,139.64,139.63,506.159561]
[1633059884724,8.66542961,139.64,139.63,534.32438102]
[1633059886424,8.66542961,139.64,139.63,506.159561]
[1633059892132,3.03,139.64,139.63,506.159561]
[1633059892533,3.03,139.64,139.63,505.659561]
[1633059895732,3.03,139.64,139.63,513.95296938]
[1633059896135,3.03,139.64,139.63,518.09768658]
[1633059896335,3.03,139.64,139.63,513.95296938]
[1633059896535,3.03,139.64,139.63,518.09737554]
[1633059897134,3.03,139.64,139.63,513.95296938]
[1633059897535,3.03,139.64,139.63,518.09710512]
[1633059898237,3.03,139.64,139.63,513.95296938]
[1633059899138,3.03,139.64,139.63,505.659561]
[1633059899338,3.03,139.64,139.63,513.95251876]
[1633059899737,3.03,139.64,139.63,505.659561]
[1633059903539,3.03,139.64,139.63,513.95226349]
[1633059904140,3.03,139.64,139.63,518.06762089]
[1633059904340,3.03,139.64,139.63,513.95226349]
[1633059905340,3.03,139.67,139.63,513.95226349]
[1633059905541,3.03,139.67,139.65,26.91670893]
[1633059906940,3.03,139.67,139.66,8.29069403]
[1633059907546,3.03,139.67,139.66,12.41465935]
[1633059907945,3.03,139.67,139.66,8.29069403]
[1633059909749,3.03,139.69,139.65,26.91670893]
[1633059910649,3.03,139.69,139.66,8.29010769]
[1633059910848,3.03,139.69,139.65,26.91670893]
[1633059912354,452.70393186,139.76,139.75,72.64]
[1633059912552,3.03,139.76,139.75,23.388]
[1633059912751,2.19054831,139.76,139.75,23.388]
[1633059913951,2.19054831,139.76,139.71,14.7]
[1633059914152,2.19054831,139.76,139.7,1.95572991]
[1633059914552,2.19054831,139.76,139.71,1.95067048]
[1633059914752,2.19054831,139.76,139.71,18.58467048]
[1633059914955,2.19054831,139.76,139.72,1.9464634]
[1633059915755,2.19054831,139.76,139.71,18.57724908]
[1633059915952,2.19054831,139.76,139.72,1.94256696]
[1633059916553,31.31326765,139.76,139.71,1.94406964]
[1633059916956,31.31326765,139.76,139.69,1.96111876]
[1633059917155,31.31326765,139.76,139.68,1.9666645]
[1633059917357,31.31326765,139.76,139.69,1.9744716]
[1633059917755,31.31326765,139.76,139.68,1.97558486]
[1633059917954,46.46926765,139.76,139.68,1.97558486]
[1633059918356,52.10469726,139.76,139.68,1.97558486]
[1633059918555,46.46926765,139.76,139.68,1.97558486]
[1633059919560,31.31326765,139.76,139.68,1.97558486]
[1633059921865,31.31326765,139.76,139.69,1.99882944]
[1633059922863,31.31326765,139.76,139.68,2.00273928]
[1633059923264,57.86869726,139.76,139.68,2.00273928]
[1633059923463,73.72497396,139.76,139.67,2.01506979]
[1633059923664,73.72497396,139.76,139.66,2.02169501]
[1633059924565,99.37021181,139.76,139.66,2.02169501]
[1633059924764,17.9089,139.75,139.66,2.02169501]
[1633059924965,24.46828725,139.73,139.66,2.02169501]
[1633059925165,3.03,139.72,139.65,2.02550986]
[1633059925367,8.66542961,139.72,139.65,2.02550986]
[1633059926563,3.03,139.72,139.65,2.02550986]
[1633059926766,3.03,139.72,139.66,2.01590634]
[1633059928365,3.03,139.72,139.65,2.00557079]
[1633059928565,25.109,139.72,139.65,2.00557079]
[1633059929467,25.109,139.72,139.66,2.03072072]
[1633059929667,3.03,139.72,139.66,2.03072072]
[1633059930471,3.03,139.72,139.67,2.03714364]
[1633059932068,3.03,139.72,139.66,2.05462448]
[1633059932267,3.03,139.72,139.67,2.05263006]
[1633059932868,3.03,139.72,139.69,2.04009804]
[1633059935271,3.03,139.72,139.68,2.04715559]
[1633059939072,5.63542961,139.71,139.68,2.04715559]
[1633059939272,29.94234065,139.7,139.68,2.04715559]
[1633059941674,50.72177026,139.7,139.67,2.07095037]
[1633059942476,45.08634065,139.7,139.67,2.07095037]
[1633059942677,29.94234065,139.7,139.67,2.07095037]
[1633059943778,29.94234065,139.7,139.64,12.43247189]
[1633059943779,29.94234065,139.7,139.68,2.06861032]
[1633059943983,3.03,139.7,139.68,2.06861032]
[1633059944180,3.03,139.7,139.69,2.06419994]
[1633059944780,3.03,139.73,139.68,4.09161033]
[1633059944980,3.03,139.73,139.72,2.03986667]
[1633059946184,3.03,139.75,139.72,2.03986667]
[1633059946383,3.03,139.75,139.73,2.00303655]
[1633059946984,3.03,139.75,139.74,2.00509132]
[1633059949085,3.03,139.75,139.73,2.00669429]
[1633059949286,3.03,139.77,139.73,2.00669429]
[1633059950085,3.03,139.77,139.74,2.00551712]
[1633059950285,3.03,139.77,139.73,2.00486481]
[1633059951887,3.03,139.77,139.74,2.00716637]
[1633059952488,3.03,139.79,139.75,1.99118779]
[1633059953691,3.03,139.79,139.74,1.9951837]
[1633059954093,3.03,139.79,139.73,2.0026239]
[1633059954690,3.03,139.79,139.7,4.00524779]
[1633059954691,3.03,139.79,139.74,1.99973093]
[1633059954891,3.03,139.79,139.73,1.99755083]
[1633059955093,3.03,139.79,139.74,1.99492912]
[1633059955292,27.5824764,139.78,139.74,1.99492912]
[1633059955891,27.5824764,139.78,139.75,503.199807]
[1633059956094,3.03,139.77,139.75,503.199807]
[1633059959497,8.66542961,139.77,139.75,503.199807]
[1633059960500,3.03,139.77,139.75,503.199807]
[1633059962001,8.66542961,139.77,139.75,456.582607]
[1633059962403,8.66542961,139.77,139.75,20.96576407]
[1633059962602,8.66542961,139.77,139.67,2.04433458]
[1633059962603,80.93911733,139.77,139.67,2.04433458]
[1633059964205,98.84561733,139.77,139.67,2.04433458]
[1633059965008,174.51561733,139.77,139.67,2.04433458]
[1633059965408,174.51561733,139.77,139.66,2.0531995]
[1633059966411,77.0523,139.76,139.66,2.0531995]
[1633059966615,3.03,139.75,139.66,2.0531995]
[1633059966811,81.12483342,139.75,139.66,2.0531995]
[1633059967020,78.09483342,139.74,139.66,2.0531995]
[1633059967233,3.03,139.73,139.66,2.0531995]
[1633059967413,53.0350658,139.73,139.66,2.0531995]
[1633059967614,22.24371684,139.72,139.66,2.0531995]
[1633059967814,3.03,139.71,139.66,2.0531995]
[1633059969117,19.63828723,139.71,139.66,2.0531995]
[1633059970018,19.63828723,139.71,139.65,2.05386802]
[1633059970239,25.27371684,139.71,139.65,2.05386802]
[1633059970841,53.0350658,139.71,139.65,2.05386802]
[1633059972044,81.12483342,139.71,139.64,2.05973976]
[1633059973042,81.12483342,139.71,139.65,2.05777269]
[1633059973243,81.12483342,139.71,139.64,2.05891622]
[1633059973843,81.12483342,139.71,139.65,2.05655294]
[1633059974643,81.12483342,139.71,139.64,2.05068697]
[1633059976047,53.0350658,139.71,139.64,2.05068697]
[1633059976252,25.27371684,139.71,139.66,21.96253482]
[1633059976445,3.03,139.71,139.66,43.87290945]
[1633059976647,3.03,139.71,139.68,1.98808662]
[1633059976844,3.03,139.73,139.68,1.98808662]
[1633059977044,3.03,139.73,139.69,25.2153079]
[1633059977844,3.03,139.73,139.69,27.1926588]
[1633059978446,3.03,139.73,139.68,1.98488931]
[1633059979049,3.03,139.73,139.69,1.97760496]
[1633059979849,3.03,139.73,139.68,29.25657793]
[1633059980056,3.03,139.73,139.68,1.978479]
[1633059980251,3.03,139.73,139.67,1.98799249]
[1633059980451,3.03,139.73,139.66,1.99649945]
[1633059980651,3.03,139.73,139.67,1.99481391]
[1633059980850,3.03,139.73,139.66,1.99553327]
[1633059981050,8.66542961,139.73,139.66,1.99553327]
[1633059981251,25.27371684,139.73,139.67,1.99572087]
[1633059982251,25.27371684,139.73,139.67,25.67212177]
[1633059982657,19.63828723,139.73,139.67,25.67212177]
[1633059982851,19.63828723,139.73,139.68,1.98470354]
[1633059984953,19.63828723,139.73,139.69,1.98405405]
[1633059988656,19.63828723,139.73,139.7,1.99749394]
[1633059990858,19.63828723,139.73,139.72,1.9822195]
[1633059992263,19.63828723,139.73,139.71,1.97804351]
[1633059993064,19.63828723,139.73,139.7,1.98861374]
[1633059995166,19.63828723,139.73,139.7,26.22094184]
[1633059995367,19.63828723,139.73,139.72,1.98695374]
[1633059995564,3.03,139.73,139.72,1.98695374]
[1633059996164,3.03,139.73,139.7,24.2323281]
[1633059996364,3.03,139.73,139.72,1.98240115]
[1633059996965,3.03,139.73,139.7,24.2323281]
[1633059997365,3.03,139.73,139.72,1.98553759]
[1633059997764,3.03,139.73,139.71,1.99698146]
[1633059999365,3.03,139.73,139.72,1.99767549]
[1633060002972,3.03,139.73,139.72,24.34773153]
[1633060003171,3.03,139.73,139.72,22.35005604]
[1633060006373,3.03,139.73,139.7,3.97682532]
[1633060006575,3.03,139.73,139.72,2.00388479]
[1633060006784,16.67828723,139.78,139.71,20.97]
[1633060006976,3.03,139.77,139.74,1.98195765]
[1633060007176,3.03,139.77,139.74,19.77195765]
[1633060007376,3.03,139.77,139.76,1.96998859]
[1633060007576,3.03,139.77,139.76,31.62422546]
[1633060007775,0.07,139.78,139.76,29.65423687]
[1633060008385,3.03,139.81,139.77,8.2850085]
[1633060008580,3.03,139.81,139.79,1.93744076]
[1633060008779,9.45839233,139.88,139.84,30.0]
[1633060008978,9.45839233,139.88,139.84,76.01339318]
[1633060009180,116.5,139.89,139.84,76.01339318]
[1633060010379,116.5,139.89,139.84,47.922]
[1633060010577,122.13542961,139.89,139.84,30.0]
[1633060011179,3.03,139.88,139.84,30.0]
[1633060011581,5.63542961,139.87,139.84,30.0]
[1633060011779,3.03,139.86,139.84,30.0]
[1633060012178,5.63542961,139.85,139.84,30.0]
[1633060012381,8.66542961,139.85,139.84,30.0]
[1633060016787,21.39848943,139.78,139.76,341.03560604]
[1633060016988,21.39848943,139.78,139.73,0.02088]
[1633060016989,3.03,139.77,139.73,0.02088]
[1633060017188,8.66542961,139.77,139.7,1.98612317]
[1633060017591,22.31593906,139.76,139.67,2.00972471]
[1633060017788,3.03,139.75,139.66,2.01885672]
[1633060017987,175.09167456,139.75,139.64,2.03508639]
[1633060018189,32.7016639,139.74,139.64,2.03508639]
[1633060018390,3.03,139.73,139.63,4.07560624]
[1633060018591,81.53867456,139.73,139.63,2.027297]
[1633060018790,77.1665612,139.72,139.63,2.027297]
[1633060018988,3.03,139.71,139.63,2.027297]
[1633060019189,48.54742026,139.71,139.64,25.00638196]
[1633060019392,76.33180811,139.71,139.64,25.00638196]
[1633060019589,3.03,139.71,139.64,25.00638196]
[1633060019990,3.03,139.71,139.63,4.06554363]
[1633060020188,5.63542961,139.7,139.63,2.027297]
[1633060020389,3.03,139.69,139.63,2.027297]
[1633060020792,8.66542961,139.69,139.63,2.027297]
[1633060020990,56.68015091,139.69,139.63,2.027297]
[1633060021190,86.63120542,139.69,139.63,2.027297]
[1633060022592,86.63120542,139.69,139.64,21.48804437]
[1633060022790,27.24591008,139.69,139.64,21.48804437]
[1633060022991,21.61048047,139.69,139.63,2.027297]
[1633060023192,27.24591008,139.69,139.63,2.027297]
[1633060024792,21.61048047,139.69,139.63,2.027297]
[1633060025192,21.61048047,139.69,139.64,25.24274121]
[1633060025394,3.03,139.69,139.63,2.027297]
[1633060026596,8.66542961,139.69,139.64,24.19440909]
[1633060026994,3.03,139.69,139.64,24.19440909]
[1633060027192,3.03,139.69,139.63,2.027297]
[1633060028793,8.66542961,139.69,139.63,2.027297]
[1633060030395,3.03,139.69,139.63,2.027297]
[1633060030796,3.03,139.69,139.63,27.20534276]
[1633060031798,3.03,139.69,139.63,2.027297]
[1633060033397,8.66542961,139.69,139.63,2.027297]
[1633060035398,75.67,139.67,139.63,2.027297]
[1633060035599,3.03,139.66,139.63,2.027297]
[1633060035802,88.45551141,139.66,139.63,2.027297]
[1633060035998,54.54981816,139.65,139.63,2.027297]
[1633060036200,3.03,139.64,139.63,2.027297]
[1633060037399,8.66542961,139.64,139.63,2.027297]
[1633060038800,3.03,139.64,139.63,2.027297]
[1633060040400,3.03,139.66,139.63,2.027297]
[1633060046406,3.03,139.66,139.64,2.07097014]
[1633060046610,3.03,139.66,139.63,4.09838965]
[1633060047007,8.66542961,139.66,139.63,2.027297]
[1633060047208,8.66542961,139.66,139.64,2.07179908]
[1633060048209,8.66542961,139.66,139.65,2.07159157]
[1633060049010,8.66542961,139.66,139.63,4.09919815]
[1633060049212,8.66542961,139.66,139.64,2.07186896]
[1633060049416,8.66542961,139.66,139.63,4.09916589]
[1633060049613,8.66542961,139.66,139.64,2.0718437]
[1633060050412,8.66542961,139.66,139.65,2.07169082]
[1633060051414,8.66542961,139.66,139.64,2.0717648]
[1633060054817,3.03,139.66,139.64,2.0717648]
[1633060055617,8.66542961,139.66,139.64,2.0717648]
[1633060056017,139.99635974,139.66,139.63,2.027297]
[1633060056219,7.8516362,139.65,139.63,2.027297]
[1633060056417,2.0717648,139.63,139.61,2.07225826]
[1633060056622,3.03,139.62,139.6,2.07239495]
[1633060057218,5.63542961,139.61,139.6,2.07239495]
[1633060057420,8.66542961,139.61,139.6,2.07239495]
[1633060057619,8.66542961,139.61,139.59,2.07245881]
[1633060058021,5.63542961,139.6,139.58,2.07236757]
[1633060058220,3.03,139.59,139.58,2.07236757]
[1633060058618,8.66542961,139.59,139.58,2.07236757]
[1633060060220,8.66542961,139.59,139.57,2.07211879]
[1633060061223,74.86259594,139.59,139.55,2.07228954]
[1633060061422,74.86259594,139.59,139.54,2.07242772]
[1633060061623,74.86259594,139.59,139.53,2.07218898]
[1633060061823,74.86259594,139.59,139.54,2.0723484]
[1633060063026,103.67490752,139.59,139.54,2.0723484]
[1633060063247,75.67,139.58,139.53,2.07222983]
[1633060063425,3.03,139.57,139.53,2.07222983]
[1633060063626,83.06990752,139.57,139.53,2.07222983]
[1633060063832,53.41107523,139.56,139.52,2.07209909]
[1633060064024,3.03,139.55,139.52,2.07209909]
[1633060064225,8.66542961,139.55,139.52,2.07209909]
[1633060064426,5.63542961,139.54,139.51,2.0722146]
[1633060064625,3.03,139.53,139.5,2.07247168]
[1633060064825,30.60069784,139.53,139.49,2.07247812]
[1633060065024,44.08776365,139.53,139.48,2.0721686]
[1633060066027,18.96333404,139.52,139.47,2.07226116]
[1633060066248,3.03,139.51,139.47,2.07226116]
[1633060066425,8.66542961,139.51,139.47,2.07226116]
[1633060066628,5.63542961,139.5,139.47,2.07226116]